fUSD/lending_fUSD_20250120
["ID","MTS","AMOUNT","RATE_DAILY","PERIOD"]
[349683391,1737375044975,-500.0,0.00021818,2]
[349683392,1737375044984,-898.24,0.00021818,2]
[349683393,1737375044994,-709.64,0.00021818,2]
[349683394,1737375045005,-500.0,0.00021818,2]
[349683395,1737375045014,-941.44,0.00021818,2]
[349683396,1737375045024,-500.0,0.00021818,2]
[349683397,1737375045033,-2882.25,0.00021818,2]
[349683398,1737375045043,-500.0,0.00021818,2]
[349683399,1737375045052,-717.45,0.00021818,2]
[349683400,1737375045063,-521.68,0.00021819,2]
[349683401,1737375045072,-1141.92,0.00021819,2]
[349683402,1737375045082,-1295.84,0.00021819,2]
[349683403,1737375045091,-169.93191478,0.00021819,2]
[349683404,1737375045100,-1933.79,0.00021819,2]
[349683405,1737375045109,-500.0,0.00021819,2]
[349683406,1737375045118,-1000.0,0.00021819,2]
[349683407,1737375045127,-3067.39,0.00021819,2]
[349683408,1737375045137,-1375.9,0.00021819,2]
[349683409,1737375045147,-2976.18,0.00021819,2]
[349683410,1737375045156,-500.0,0.00021819,2]
[349683411,1737375045166,-1870.0,0.0002182,2]
[349683412,1737375045176,-500.0,0.0002182,2]
[349683413,1737375045185,-500.0,0.0002182,2]
[349683414,1737375045194,-500.0,0.0002182,2]
[349683415,1737375045204,-300.0,0.0002182,2]
[349683416,1737375045214,-500.0,0.0002182,2]
[349683417,1737375045223,-500.0,0.0002182,2]
[349683418,1737375045233,-500.0,0.0002182,2]
[349683419,1737375045242,-500.0,0.0002182,2]
[349683420,1737375045252,-559.15318204,0.0002182,2]
[349683421,1737375045265,-500.0,0.0002182,2]
[349683423,1737375045275,-500.0,0.0002182,2]
[349683424,1737375045284,-500.0,0.0002182,2]
[349683425,1737375045294,-500.0,0.0002182,2]
[349683426,1737375045304,-500.0,0.0002182,2]
[349683427,1737375045313,-527.5,0.0002182,2]
[349683428,1737375045324,-500.0,0.0002182,2]
[349683430,1737375045333,-500.0,0.0002182,2]
[349683431,1737375045343,-718.91,0.0002182,2]
[349683432,1737375045355,-500.0,0.0002182,2]
[349683433,1737375045365,-688.16,0.0002182,2]
[349683434,1737375045375,-500.0,0.0002182,2]
[349683435,1737375045385,-500.0,0.0002182,2]
[349683437,1737375045395,-500.0,0.0002182,2]
[349683438,1737375045405,-642.65936435,0.0002182,2]
[349683440,1737375045414,-723.34,0.0002182,2]
[349683442,1737375045424,-500.89,0.0002182,2]
[349683444,1737375045435,-500.0,0.0002182,2]
[349683446,1737375045444,-500.0,0.0002182,2]
[349683447,1737375045454,-500.0,0.0002182,2]
[349683448,1737375045463,-500.0,0.0002182,2]
[349683449,1737375045473,-500.0,0.0002182,2]
[349683450,1737375045483,-500.0,0.0002182,2]
[349683451,1737375045492,-500.0,0.0002182,2]
[349683453,1737375045502,-500.0,0.0002182,2]
[349683454,1737375045513,-500.0,0.0002182,2]
[349683455,1737375045523,-504.72937906,0.0002182,2]
[349683456,1737375045533,-500.0,0.0002182,2]
[349683457,1737375045542,-500.0,0.0002182,2]
[349683458,1737375045553,-500.0,0.0002182,2]
[349683459,1737375045563,-500.0,0.0002182,2]
[349683460,1737375045573,-500.0,0.0002182,2]
[349683461,1737375045582,-500.0,0.0002182,2]
[349683462,1737375045592,-500.0,0.0002182,2]
[349683463,1737375045601,-500.0,0.0002182,2]
[349683464,1737375045611,-500.0,0.0002182,2]
[349683465,1737375045621,-500.0,0.0002182,2]
[349683466,1737375045631,-500.0,0.0002182,2]
[349683467,1737375045641,-500.0,0.0002182,2]
[349683468,1737375045651,-500.0,0.0002182,2]
[349683469,1737375045661,-500.0,0.0002182,2]
[349683470,1737375045670,-500.0,0.0002182,2]
[349683471,1737375045680,-500.0,0.0002182,2]
[349683472,1737375045690,-500.0,0.0002182,2]
[349683473,1737375045699,-500.0,0.0002182,2]
[349683474,1737375045709,-500.0,0.0002182,2]
[349683475,1737375045719,-500.0,0.0002182,2]
[349683476,1737375045729,-500.0,0.0002182,2]
[349683477,1737375045739,-500.0,0.0002182,2]
[349683478,1737375045748,-500.0,0.0002182,2]
[349683479,1737375045759,-500.0,0.0002182,2]
[349683480,1737375045769,-500.0,0.0002182,2]
[349683481,1737375045779,-500.0,0.0002182,2]
[349683482,1737375045788,-500.0,0.0002182,2]
[349683483,1737375045798,-500.0,0.0002182,2]
[349683484,1737375045807,-500.0,0.0002182,2]
[349683485,1737375045817,-500.0,0.0002182,2]
[349683486,1737375045827,-500.0,0.0002182,2]
[349683487,1737375045837,-500.0,0.0002182,2]
[349683488,1737375045847,-500.0,0.0002182,2]
[349683489,1737375045857,-500.0,0.0002182,2]
[349683490,1737375045867,-500.0,0.0002182,2]
[349683491,1737375045876,-500.0,0.0002182,2]
[349683492,1737375045887,-500.0,0.0002182,2]
[349683493,1737375045897,-500.0,0.0002182,2]
[349683494,1737375045907,-500.0,0.0002182,2]
[349683495,1737375045917,-500.0,0.0002182,2]
[349683496,1737375045927,-500.0,0.0002182,2]
[349683497,1737375045936,-500.0,0.0002182,2]
[349683498,1737375045946,-500.0,0.0002182,2]
[349683499,1737375045957,-500.0,0.0002182,2]
[349683500,1737375045966,-500.0,0.0002182,2]
[349683501,1737375045975,-500.0,0.0002182,2]
[349683502,1737375045985,-500.0,0.0002182,2]
[349683503,1737375045994,-500.0,0.0002182,2]
[349683504,1737375046006,-500.0,0.0002182,2]
[349683505,1737375046016,-500.0,0.0002182,2]
[349683506,1737375046025,-500.0,0.0002182,2]
[349683507,1737375046035,-813.14,0.0002182,2]
[349683508,1737375046045,-500.0,0.0002182,2]
[349683509,1737375046054,-500.0,0.0002182,2]
[349683510,1737375046096,-500.0,0.0002182,2]
[349683511,1737375046106,-500.0,0.0002182,2]
[349683512,1737375046115,-500.0,0.0002182,2]
[349683513,1737375046125,-500.0,0.0002182,2]
[349683515,1737375046136,-500.0,0.0002182,2]
[349683517,1737375046146,-500.0,0.0002182,2]
[349683519,1737375046156,-500.0,0.0002182,2]
[349683521,1737375046165,-500.0,0.0002182,2]
[349683523,1737375046175,-500.0,0.0002182,2]
[349683525,1737375046185,-500.0,0.0002182,2]
[349683527,1737375046195,-500.0,0.0002182,2]
[349683529,1737375046204,-500.0,0.0002182,2]
[349683531,1737375046213,-500.0,0.0002182,2]
[349683533,1737375046223,-500.0,0.0002182,2]
[349683535,1737375046233,-500.0,0.0002182,2]
[349683537,1737375046243,-500.0,0.0002182,2]
[349683538,1737375046255,-500.0,0.0002182,2]
[349683540,1737375046266,-500.0,0.0002182,2]
[349683542,1737375046276,-500.0,0.0002182,2]
[349683544,1737375046286,-500.0,0.0002182,2]
[349683547,1737375046296,-500.0,0.0002182,2]
[349683548,1737375046307,-500.0,0.0002182,2]
[349683550,1737375046316,-500.0,0.0002182,2]
[349683553,1737375046326,-500.0,0.0002182,2]
[349683555,1737375046336,-500.0,0.0002182,2]
[349683556,1737375046346,-500.0,0.0002182,2]
[349683557,1737375046357,-500.0,0.0002182,2]
[349683558,1737375046367,-500.0,0.0002182,2]
[349683559,1737375046376,-1032.57,0.0002182,2]
[349683560,1737375046386,-500.0,0.0002182,2]
[349683561,1737375046396,-500.0,0.0002182,2]
[349683562,1737375046405,-500.0,0.0002182,2]
[349683563,1737375046414,-993.0,0.0002182,2]
[349683564,1737375046423,-500.0,0.0002182,2]
[349683565,1737375046433,-500.0,0.0002182,2]
[349683566,1737375046443,-500.0,0.0002182,2]
[349683567,1737375046453,-500.0,0.0002182,2]
[349683568,1737375046463,-500.0,0.0002182,2]
[349683569,1737375046472,-500.0,0.0002182,2]
[349683570,1737375046482,-500.0,0.0002182,2]
[349683571,1737375046492,-500.0,0.0002182,2]
[349683572,1737375046500,-500.0,0.0002182,2]
[349683573,1737375046513,-500.0,0.0002182,2]
[349683574,1737375046522,-500.0,0.0002182,2]
[349683575,1737375046531,-500.0,0.0002182,2]
[349683576,1737375046540,-500.0,0.0002182,2]
[349683577,1737375046549,-1194.98,0.0002182,2]
[349683578,1737375046558,-500.0,0.0002182,2]
[349683579,1737375046567,-500.0,0.0002182,2]
[349683580,1737375046576,-500.0,0.0002182,2]
[349683581,1737375046585,-500.0,0.0002182,2]
[349683582,1737375046594,-151.0,0.0002182,2]
[349683583,1737375046605,-596.0,0.0002182,2]
[349683584,1737375046616,-500.0,0.0002182,2]
[349683585,1737375046626,-151.0,0.0002182,2]
[349683586,1737375046635,-578.09,0.0002182,2]
[349683587,1737375046645,-1075.78,0.0002182,2]
[349683588,1737375046654,-500.0,0.0002182,2]
[349683589,1737375046664,-500.0,0.0002182,2]
[349683590,1737375046673,-500.0,0.0002182,2]
[349683591,1737375046683,-237.120185,0.0002182,2]
[349683592,1737375046692,-500.0,0.0002182,2]
[349683593,1737375046702,-500.0,0.0002182,2]
[349683594,1737375046711,-500.0,0.0002182,2]
[349683595,1737375046720,-500.0,0.0002182,2]
[349683596,1737375046730,-500.0,0.0002182,2]
[349683597,1737375046739,-500.0,0.0002182,2]
[349683598,1737375046749,-500.0,0.0002182,2]
[349683599,1737375046764,-500.0,0.0002182,2]
[349683600,1737375046773,-338.23277611,0.0002182,2]
[349683601,1737375046782,-833.21,0.0002182,2]
[349683602,1737375046791,-500.0,0.0002182,2]
[349683603,1737375046800,-500.0,0.0002182,2]
[349683604,1737375046810,-500.0,0.0002182,2]
[349683605,1737375046819,-500.0,0.0002182,2]
[349683606,1737375046829,-500.0,0.0002182,2]
[349683607,1737375046839,-500.0,0.0002182,2]
[349683608,1737375046848,-500.0,0.0002182,2]
[349683609,1737375046858,-500.0,0.0002182,2]
[349683610,1737375046868,-633.43,0.0002182,2]
[349683611,1737375046878,-151.0,0.0002182,2]
[349683612,1737375046887,-500.0,0.0002182,2]
[349683613,1737375046896,-500.0,0.0002182,2]
[349683614,1737375046905,-1015.88,0.0002182,2]
[349683615,1737375046914,-500.0,0.0002182,2]
[349683616,1737375046925,-1450.74,0.0002182,2]
[349683617,1737375046935,-500.0,0.0002182,2]
[349683618,1737375046944,-500.0,0.0002182,2]
[349683619,1737375046953,-500.0,0.0002182,2]
[349683620,1737375046962,-500.0,0.0002182,2]
[349683621,1737375046971,-1430.03,0.0002182,2]
[349683622,1737375046980,-500.0,0.0002182,2]
[349683623,1737375046990,-1103.39,0.0002182,2]
[349683624,1737375047000,-500.0,0.0002182,2]
[349683625,1737375047014,-687.35,0.0002182,2]
[349683626,1737375047024,-500.0,0.0002182,2]
[349683627,1737375047033,-500.0,0.0002182,2]
[349683628,1737375047043,-773.53,0.0002182,2]
[349683629,1737375047052,-500.0,0.0002182,2]
[349683630,1737375047062,-1009.99,0.0002182,2]
[349683631,1737375047072,-500.0,0.0002182,2]
[349683632,1737375047082,-500.0,0.0002182,2]
[349683633,1737375047091,-1096.47,0.0002182,2]
[349683634,1737375047100,-2367.19,0.0002182,2]
[349683635,1737375047109,-151.0,0.0002182,2]
[349683636,1737375047119,-1342.49,0.0002182,2]
[349683637,1737375047129,-222.900336,0.0002182,2]
[349683638,1737375047140,-25450.51206434,0.00021823,2]
[349683639,1737375047149,-313.61798249,0.00021828,2]
[349683640,1737375047159,-25450.51206434,0.00021832,2]
[349683641,1737375047169,-200.0,0.00021849,2]
[349683642,1737375047178,-200.0,0.00021864,2]
[349683643,1737375047190,-313.61798249,0.00021866,2]
[349683644,1737375047201,-313.61798249,0.00021875,2]
[349683645,1737375047212,-497.73688316,0.00021876,2]
[349683646,1737375047223,-150.0,0.00021876,2]
[349683647,1737375047233,-500.0,0.0002189,2]
[349683648,1737375047243,-313.61798249,0.00021891,2]
[349683649,1737375047260,-313.61798249,0.00021891,2]
[349683650,1737375047271,-2712.68595274,0.000219,2]
[349683651,1737375047282,-169.93191478,0.000219,2]
[349683652,1737375047297,-1340.264107,0.000219,2]
[349683653,1737375047307,-1402.62959407,0.000219,2]
[349683654,1737375047317,-151.46335556,0.000219,2]
[349683655,1737375047327,-151.46335555,0.000219,2]
[349683656,1737375047337,-401.4445052,0.00021917,2]
[349683657,1737375047347,-500.0,0.00021917,2]
[349683658,1737375047357,-500.0,0.00021917,2]
[349683659,1737375047368,-500.0,0.00021917,2]
[349683660,1737375047378,-150.0,0.00021918,2]
[349683661,1737375047388,-4000.0,0.00021918,2]
[349683662,1737375047398,-1000.0,0.00021934,2]
[349683663,1737375047408,-500.0,0.00021943,2]
[349683664,1737375047417,-500.0,0.00021943,2]
[349683665,1737375047427,-618.58921817,0.00021943,2]
[349683666,1737375047437,-500.0,0.00021943,2]
[349683667,1737375047446,-817.71,0.00021943,2]
[349683668,1737375047456,-500.0,0.00021943,2]
[349683669,1737375047466,-500.0,0.00021943,2]
[349683670,1737375047475,-500.0,0.00021943,2]
[349683671,1737375047485,-500.0,0.00021943,2]
[349683672,1737375047495,-267.91835985,0.00021943,2]
[349683673,1737375047508,-500.0,0.00021943,2]
[349683674,1737375047518,-500.0,0.00021943,2]
[349683675,1737375047527,-500.0,0.00021943,2]
[349683676,1737375047537,-500.0,0.00021943,2]
[349683677,1737375047547,-371.04223711,0.00021943,2]
[349683678,1737375047557,-500.0,0.00021943,2]
[349683679,1737375047566,-500.0,0.00021943,2]
[349683680,1737375047576,-695.43,0.00021943,2]
[349683681,1737375047585,-500.0,0.00021943,2]
[349683682,1737375047595,-500.0,0.00021943,2]
[349683683,1737375047605,-518.2,0.00021943,2]
[349683684,1737375047614,-500.0,0.00021943,2]
[349683685,1737375047624,-500.0,0.00021943,2]
[349683686,1737375047634,-500.0,0.00021943,2]
[349683687,1737375047643,-500.0,0.00021943,2]
[349683688,1737375047653,-500.0,0.00021943,2]
[349683689,1737375047663,-500.0,0.00021943,2]
[349683690,1737375047673,-150.0,0.00021973,4]
[349683691,1737375047683,-150.0,0.00021973,4]
[349683692,1737375047692,-150.0,0.00021973,4]
[349683693,1737375047702,-1000.0,0.00021974,2]
[349683694,1737375047712,-3577.00016511,0.00021985,2]
[349683695,1737375048596,-500.0,0.00021717,2]
[349683696,1737375048606,-6678.52680989,0.00021985,2]
[349683697,1737375048616,-3690.99827408,0.00021985,2]
[349683698,1737375048628,-4305.91185282,0.00021985,2]
[349683699,1737375048638,-5738.2932789,0.00021985,2]
[349683700,1737375048648,-3479.6764308,0.00021985,2]
[349683701,1737375048659,-1221.0595827,0.00021985,2]
[349683702,1737375048802,-5353.3076296,0.00021985,2]
[349683703,1737375048812,-4175.6717745,0.00021985,2]
[349683704,1737375048821,-2998.0359194,0.00021985,2]
[349683705,1737375048831,-1820.4000644,0.00021985,2]
[349683706,1737375048840,-642.7642093,0.00021985,2]
[349683707,1737375048850,-209.7247746,0.00021985,2]
[349683708,1737375048859,-209.7247746,0.00021985,2]
[349683709,1737375048869,-209.7247746,0.00021985,2]
[349683710,1737375048878,-209.7247746,0.00021985,2]
[349683711,1737375048887,-209.7247746,0.00021985,2]
[349683712,1737375048898,-151.0,0.0002199,7]
[349683713,1737375048907,-150.0,0.0002199,2]
[349683714,1737375048916,-414.2970909,0.0002199,2]
[349683715,1737375048932,-85.7029091,0.0002199,2]
[349683716,1737375048941,-150.0,0.0002199,2]
[349683717,1737375048950,-62.0697464,0.00021991,2]
[349683718,1737375048966,-446.1202536,0.00021991,2]
[349683719,1737375048975,-95.39612131,0.00021991,2]
[349683720,1737375048987,-404.60387869,0.00021991,2]
[349683721,1737375048996,-411.14310834,0.00021992,2]
[349683722,1737375049010,-1401.89689166,0.00021992,2]
[349683723,1737375049020,-500.0,0.00021992,2]
[349683724,1737375049030,-2095.99,0.00021992,2]
[349683725,1737375049039,-500.0,0.00021992,2]
[349683726,1737375049049,-3299.63,0.00021992,2]
[349683727,1737375049058,-1245.28,0.00021992,2]
[349683728,1737375049068,-1958.35,0.00021992,2]
[349683729,1737375049078,-306.61967558,0.00021992,2]
[349683730,1737375049090,-758.22032442,0.00021992,2]
[349683731,1737375049100,-500.0,0.00021992,2]
[349683732,1737375049110,-840.51,0.00021992,2]
[349683733,1737375049119,-2613.27,0.00021992,2]
[349683734,1737375049129,-500.0,0.00021992,2]
[349683735,1737375049138,-1035.23,0.00021992,2]
[349683736,1737375049147,-486.67540615,0.00021992,2]
[349683737,1737375049246,-310.45502609,0.00021172,2]
[349683738,1737375049259,-131.29459385,0.00021992,2]
[349683739,1737375049269,-99.28082386,0.00021992,2]
[349683740,1737375049285,-839.58875001,0.00021992,2]
[349683741,1737375049313,-700.03042613,0.00021992,2]
[349683742,1737375049325,-500.0,0.00021992,2]
[349683743,1737375049335,-1112.37389266,0.00021992,2]
[349683744,1737375049348,-198.46610734,0.00021992,2]
[349683745,1737375049358,-1248.23,0.00021992,2]
[349683746,1737375049368,-2000.75,0.00021992,2]
[349683747,1737375049378,-6070.73,0.00021992,2]
[349683748,1737375049388,-697.17,0.00021992,2]
[349683749,1737375049397,-1135.67,0.00021992,2]
[349683750,1737375049407,-2148.75,0.00021992,2]
[349683751,1737375049416,-500.0,0.00021992,2]
[349683752,1737375049426,-1646.29,0.00021992,2]
[349683753,1737375049435,-500.0,0.00021992,2]
[349683754,1737375049444,-2779.77,0.00021992,2]
[349683755,1737375049454,-3897.74,0.00021992,2]
[349683756,1737375049462,-321.859929,0.00021993,2]
[349683757,1737375049471,-500.0,0.00021993,2]
[349683758,1737375049480,-690.48,0.00021993,2]
[349683759,1737375049489,-219.64,0.00021993,2]
[349683760,1737375049499,-684.8,0.00021993,2]
[349683761,1737375049511,-517.228018,0.00021993,2]
[349683762,1737375049520,-501.13,0.00021993,2]
[349683763,1737375049529,-519.7,0.00021993,2]
[349683764,1737375049539,-500.0,0.00021993,2]
[349683765,1737375049548,-3064.57,0.00021993,2]
[349683766,1737375049557,-500.0,0.00021993,2]
[349683767,1737375049566,-1247.49,0.00021993,2]
[349683768,1737375049576,-3353.84,0.00021993,2]
[349683769,1737375049586,-728.78,0.00021993,2]
[349683770,1737375049596,-2953.02,0.00021993,2]
[349683771,1737375049606,-3164.09,0.00021993,2]
[349683772,1737375049615,-1675.86,0.00021993,2]
[349683773,1737375049624,-3198.4,0.00021993,2]
[349683774,1737375049634,-959.06,0.00021993,2]
[349683775,1737375049644,-1762.36,0.00021993,2]
[349683776,1737375049655,-3336.16,0.00021993,2]
[349683777,1737375049664,-811.51,0.00021993,2]
[349683778,1737375049674,-1272.83,0.00021993,2]
[349683779,1737375049684,-500.0,0.00021993,2]
[349683780,1737375049694,-843.67,0.00021993,2]
[349683781,1737375049703,-1444.69,0.00021993,2]
[349683782,1737375049713,-1650.79,0.00021993,2]
[349683783,1737375049722,-319.22501676,0.00021993,2]
[349683784,1737375049732,-1350.03,0.00021993,2]
[349683785,1737375049742,-3659.81,0.00021993,2]
[349683786,1737375049752,-2087.04,0.00021993,2]
[349683787,1737375049765,-5147.31,0.00021993,2]
[349683788,1737375049776,-985.0,0.00021993,2]
[349683789,1737375049786,-2842.59,0.00021993,2]
[349683790,1737375049796,-33391.70442965,0.00021998,2]
[349683791,1737375049806,-500.0,0.00021999,2]
[349683792,1737375049816,-12514.143823,0.00021999,2]
[349683793,1737375049826,-6530.9434846,0.00021999,2]
[349683794,1737375049835,-209.7247746,0.00021999,2]
[349683795,1737375049845,-151.0,0.00021999,7]
[349683796,1737375049855,-571.18964837,0.00022,2]
[349683797,1737375049864,-1928319.90923645,0.00022,2]
[349683798,1737375049952,-348.82372796,0.00022,2]
[349683799,1737375050326,-500.0,0.00021169,2]
[349683800,1737375050336,-500.0,0.0002117,2]
[349683801,1737375050346,-500.0,0.0002117,2]
[349683802,1737375050357,-500.0,0.0002127,2]
[349683803,1737375050367,-23895.66922091,0.00022,2]
[349683804,1737375050380,-42013.3255167,0.00022,2]
[349683805,1737375050392,-383.88235,0.00022,2]
[349683806,1737375050404,-423.28319872,0.00022,2]
[349683807,1737375050415,-16914.95139273,0.00022,2]
[349683809,1737375050745,-500.0,0.00021169,2]
[349683810,1737375050761,-310.45502609,0.00021536,2]
[349683811,1737375050770,-10069.24316749,0.00022,2]
[349683812,1737375050782,-260.74,0.00022,2]
[349683813,1737375050793,-873.97387886,0.00022,2]
[349683814,1737375050813,-5658.10847067,0.00022,2]
[349683815,1737375050824,-1016.60000025,0.00022,2]
[349683816,1737375050850,-3039.4,0.00022,2]
[349683818,1737375283630,150.0,0.00012501,2]
[349683825,1737375908583,33192.89,0.00012,2]
[349683826,1737375908613,109130.58256906,0.00012,2]
[349683827,1737375908643,106222.39688851,0.00012,2]
[349683828,1737375910591,170.16,0.00010137,2]
[349683838,1737376084774,45051.97568727,0.0001,2]
[349683859,1737376233039,-550.0,0.00015,2]
[349683860,1737376233049,-3756.99897655,0.00015,2]
[349683861,1737376233097,-659.50637999,0.00015,2]
[349683862,1737376233109,-2142.54062162,0.00015,2]
[349683863,1737376233119,-404.62452774,0.00016,2]
[349683864,1737376233128,-293.0,0.0001804,2]
[349683865,1737376233138,-500.0,0.00018164,2]
[349683866,1737376233147,-500.0,0.00018164,2]
[349683867,1737376233157,-724.03,0.00018207,2]
[349683868,1737376233167,-153.14,0.0001877,2]
[349683869,1737376233176,-180.39,0.0001877,2]
[349683870,1737376233186,-180.39,0.0001877,2]
[349683871,1737376233195,-180.39,0.0001877,2]
[349683872,1737376233205,-180.39,0.0001877,2]
[349683873,1737376233214,-180.39,0.0001877,2]
[349683874,1737376233223,-150.0,0.00018779,2]
[349683875,1737376233232,-193.58117083,0.00018779,2]
[349683876,1737376233242,-4679.9397598,0.0001878,2]
[349683877,1737376233256,-1123.73286347,0.0001878,2]
[349683878,1737376233268,-8040.85,0.0001878,2]
[349683879,1737376233284,-330275.03713219,0.0001878,2]
[349683880,1737376233311,-106109.99999998,0.0001878,2]
[349683881,1737376233331,-7541.12257943,0.0001878,2]
[349683882,1737376233342,-13134.42632037,0.0001878,2]
[349683883,1737376233354,-1057.31437454,0.0001878,2]
[349683884,1737376233365,-2130.0,0.0001878,2]
[349683886,1737376234583,-5580.15383759,0.0001878,2]
[349683887,1737376234595,-322651.7113614,0.0001878,2]
[349683888,1737376234606,-61102.047552,0.0001878,2]
[349683889,1737376235011,-412.30904899,0.0001878,2]
[349684181,1737376237994,-1503.58561223,0.0001878,2]
[349684183,1737376238009,-320072.20235726,0.0001878,2]
[349684185,1737376238019,-1000.0,0.00018876,2]
[349684187,1737376238028,-4161.34785087,0.00019078,2]
[349684189,1737376238037,-1755.04,0.00019178,2]
[349684191,1737376238046,-500.0,0.00019178,2]
[349684193,1737376238055,-2262.76,0.00019178,2]
[349684195,1737376238064,-1267.27,0.00019178,2]
[349684197,1737376238074,-1207.84,0.00019178,2]
[349684199,1737376238083,-3166.76,0.00019178,2]
[349684201,1737376238093,-1965.62,0.00019178,2]
[349684203,1737376238102,-1387.8,0.00019178,2]
[349684205,1737376238112,-500.0,0.00019178,2]
[349684207,1737376238120,-500.0,0.00019178,2]
[349684209,1737376238130,-2484.13,0.00019178,2]
[349684211,1737376238139,-1012.55,0.00019178,2]
[349684213,1737376238148,-500.0,0.00019178,2]
[349684215,1737376238157,-1242.14,0.00019178,2]
[349684217,1737376238166,-2961.58,0.00019178,2]
[349684219,1737376238175,-2035.65,0.00019178,2]
[349684221,1737376238184,-500.0,0.00019178,2]
[349684223,1737376238193,-1532.74,0.00019178,2]
[349684225,1737376238203,-764.81,0.00019178,2]
[349684226,1737376238211,-1943.17,0.00019178,2]
[349684227,1737376238220,-500.0,0.00019178,2]
[349684228,1737376238229,-5585.2,0.00019178,2]
[349684229,1737376238239,-500.0,0.00019178,2]
[349684230,1737376238248,-1534.46,0.00019178,2]
[349684231,1737376238263,-500.0,0.00019178,2]
[349684233,1737376238274,-990.02,0.00019178,2]
[349684234,1737376238283,-1225.34,0.00019178,2]
[349684236,1737376238293,-500.0,0.00019178,2]
[349684238,1737376238302,-500.0,0.00019178,2]
[349684240,1737376238311,-500.0,0.00019178,2]
[349684242,1737376238320,-500.0,0.00019178,2]
[349684243,1737376238329,-800.77,0.00019178,2]
[349684244,1737376238339,-500.0,0.00019178,2]
[349684245,1737376238347,-569.63,0.00019178,2]
[349684246,1737376238357,-500.0,0.00019178,2]
[349684247,1737376238366,-500.0,0.00019178,2]
[349684248,1737376238375,-500.0,0.00019178,2]
[349684249,1737376238384,-500.0,0.00019178,2]
[349684250,1737376238394,-500.0,0.00019178,2]
[349684252,1737376238403,-500.0,0.00019178,2]
[349684253,1737376238413,-2398.47,0.00019178,2]
[349684254,1737376238422,-500.0,0.00019178,2]
[349684255,1737376238432,-500.0,0.00019178,2]
[349684256,1737376238441,-500.0,0.00019178,2]
[349684257,1737376238451,-200.0,0.00019389,2]
[349684259,1737376238460,-4161.34785081,0.00019392,2]
[349684260,1737376238469,-170.49,0.00019432,2]
[349684262,1737376238478,-1755.04,0.00019452,2]
[349684264,1737376238487,-500.0,0.00019452,2]
[349684265,1737376238496,-2262.76,0.00019452,2]
[349684266,1737376238507,-1267.27,0.00019452,2]
[349684267,1737376238517,-1207.84,0.00019452,2]
[349684268,1737376238526,-3166.76,0.00019452,2]
[349684269,1737376238535,-1965.62,0.00019452,2]
[349684270,1737376238544,-1387.8,0.00019452,2]
[349684271,1737376238554,-521.9754756,0.00019452,2]
[349684272,1737376238563,-500.0,0.00019452,2]
[349684273,1737376238573,-2484.13,0.00019452,2]
[349684274,1737376238582,-1012.55,0.00019452,2]
[349684275,1737376238592,-500.0,0.00019452,2]
[349684276,1737376238601,-1242.14,0.00019452,2]
[349684277,1737376238610,-2961.58,0.00019452,2]
[349684278,1737376238619,-2035.65,0.00019452,2]
[349684279,1737376238628,-500.0,0.00019452,2]